Cogmind - Beta 15 @@@ ROGUE MODE // 2025.06.29 @ 16:52:16 Player: worthless slave Result: Destroyed by 1S-VG0(h) with KE Penetrator Performance ------------- Evolutions (0) 0 Regions Visited (3) 600 Robots Destroyed (15) 75 Value Destroyed (392) 392 Prototype IDs (0) 0 Alien Tech Used (0) 0 Bonus (776) 776 TOTAL SCORE: 1843 Bonus ------- Registered with UFD 300 Met Optimus in HQ 500 Friendly Fire -24 Cogmind --------- Core Integrity 0/250 Matter 236/300 Energy 140/140 System Corruption 0% Temperature Cool (15) Movement Walking (110) Location -8/Scraptown Parts ------- > --- POWER (1) -------- Light Deuterium Engine > --- PROPULSION (2) --- Overtuned Titanium Leg Improved Carbon-fiber Leg > --- UTILITY (2) ------ Small Storage Unit Visual Processing Unit > --- WEAPON (2) ------- Assault Cannon Flak Cannon > --- INVENTORY (8) ---- Light Deuterium Engine Carbon-fiber Leg Scrap Suit High-capacity Matter Pod (200) A0-MCA's Component Scanner Pulse Rifle Peak State ------------ > --- POWER ------------ Light Deuterium Engine > --- PROPULSION ------- Overtuned Titanium Leg Improved Carbon-fiber Leg > --- UTILITY ---------- Small Storage Unit Visual Processing Unit > --- WEAPON ----------- Pulse Rifle EM Pulse Cannon > --- INVENTORY -------- Light Deuterium Engine Aluminum Leg Carbon-fiber Leg Improved Heat Sink High-capacity Matter Pod Ion Cannon Assault Cannon Flak Cannon [Rating: 21] Favorites ----------- Power Light Ion Engine Engine Light Ion Engine Propulsion Aluminum Leg Leg Aluminum Leg Utility Small Storage Unit Storage Small Storage Unit Processor Visual Processing Unit Weapon Light Assault Rifle Energy Gun EM Shotgun Energy Cannon EM Pulse Cannon Ballistic Gun Light Assault Rifle Ballistic Cannon Flak Cannon Launcher Grenade Launcher Build | -11 -10 -10 -8 ------- Run | Yrd Mat Sub Scr Slots Evolved . | . . . . Power . | . . . . Propulsion . | . . . . Utility . | . . . . Weapon . | . . . . Parts Attached 23 | 6 6 . 11 Power 4 | 1 2 . 1 Engine 4 | 1 2 . 1 Core . | . . . . Reactor . | . . . . Propulsion 7 | 2 2 . 3 Treads . | . . . . Leg 7 | 2 2 . 3 Wheel . | . . . . Hover . | . . . . Flight . | . . . . Utility 2 | 1 1 . . Device . | . . . . Storage 1 | 1 . . . Processor 1 | . 1 . . Hackware . | . . . . Protection . | . . . . Artifact . | . . . . Weapon 10 | 2 1 . 7 Energy Gun 4 | 1 . . 3 Energy Cannon 1 | . . . 1 Ballistic Gun 2 | 1 . . 1 Ballistic Cannon 2 | . . . 2 Launcher 1 | . 1 . . Special Weapon . | . . . . Impact Weapon . | . . . . Slashing Weapon . | . . . . Piercing Weapon . | . . . . Special Melee Weapon . | . . . . Unidentified Prototypes . | . . . . Parts Lost 4 | . 4 . . Power 2 | . 2 . . Propulsion 1 | . 1 . . Utility . | . . . . Weapon 1 | . 1 . . Highest Loss Streak 2 | . 2 . . To Critical Strikes . | . . . . Average Backups 7 | 1 5 7 7 Power . | 1 . . . Propulsion . | . . . 1 Utility 4 | . 3 6 4 Weapon 1 | . . 1 2 Tool/Special . | . . . . Unused Backups 16 | . . . 16 Power 2 | . . . 2 Propulsion . | . . . . Utility 11 | . . . 11 Weapon 3 | . . . 3 Tool/Special . | . . . . Average Slot Usage (%) 96 | . 87 100 99 Engine 13 | . 12 14 14 Leg 28 | . 28 28 28 Storage 14 | . 14 14 14 Processor 12 | . 9 14 14 Energy Gun 6 | . 9 . 6 Ballistic Gun 12 | . 13 14 10 Ballistic Cannon 3 | . . . 5 Launcher 4 | . . 14 4 Peak Build Rating 21 | 6 9 9 21 Average Rating 12 | 4 7 9 15 On Entrance 6 | . 6 9 9 Naked Turns . | . . . . Heaviest Build 21 | 13 13 12 21 Greatest Support 37 | 20 20 20 37 Greatest Overweight (x) 1 | 1 . . 1 Average Overweight (x) . | . . . . Largest Inventory Capacity 8 | 8 8 8 8 Average Capacity 7 | 6 8 8 8 Most Carried 8 | 5 8 8 8 Average Carried 7 | 1 6 7 7 Final Capacity 8 | 8 8 8 8 Final Carried 8 | 1 7 8 7 Class Distribution -------------------- 60% | Mutant 26% | Scavenger-Mutant 13% | Derelict-Mutant Dominant Class ---------------- Mutant | -10/Materials Scavenger-Mutant | -10/Subcaves Mutant | -8/Scraptown Resources | -11 -10 -10 -8 ----------- Run | Yrd Mat Sub Scr Matter Collected 687 | 198 347 . 142 Remotely . | . . . . Salvage Created 542 | . 415 . 127 Parts 36 | . 28 . 8 Haulers Intercepted . | . . . . Recyclers Shooed 2 | . 2 . . Parts Field Recycled . | . . . . Retrieved Matter . | . . . . Parts Self-Destructed 8 | . . 8 . Prevented . | . . . . Kills | -11 -10 -10 -8 ------- Run | Yrd Mat Sub Scr Combat Hostiles Destroyed 14 | . 12 . 2 Guns 12 | . 12 . . Cannons 2 | . . . 2 Classes Destroyed 5 | . 3 . 2 Watcher 1 | . 1 . . Swarmer 6 | . 6 . . Grunt 6 | . 6 . . Scrapper 1 | . . . 1 Butcher 1 | . . . 1 Best Kill Streak 3 | . 3 . 2 Combat Bots Only 3 | . 3 . 2 Max Kills in Single Turn 1 | . 1 . 1 Gunslinging . | . . . . Exploded . | . . . . Melee . | . . . . Uniques/NPCs Destroyed . | . . . . Combat | -11 -10 -10 -8 -------- Run | Yrd Mat Sub Scr Hostile Shots Fired 72 | . 63 . 9 Missed 16 | . 13 . 3 Hits 56 | . 50 . 6 Projectile 56 | . 50 . 6 Critical Strikes 1 | . 1 . . Damage Taken 798 | . 637 24 137 Core 257 | . 186 . 71 Absorbed by Shields . | . . . . Regen/Repaired (Parts) 244 | . 72 . 172 Core Remaining (%) 100 | 100 . . . Volleys Fired 61 | . 55 2 4 Largest 2 | . 2 1 2 Hottest 74 | . 70 30 74 Shots Fired 111 | . 101 2 8 Gun 101 | . 101 . . Cannon 8 | . . . 8 Launcher 2 | . . 2 . Special . | . . . . Kinetic 63 | . 55 . 8 Thermal 46 | . 46 . . Explosive 2 | . . 2 . Electromagnetic . | . . . . Robot Hit Streak 9 | . 9 . 4 Robot Miss Streak 7 | . 7 . 7 Penetration Max . | . . . . Secondary Targets 1 | . 1 . . Max Gunslinging Chain 1 | . 1 . . Shots Hit Robots 59 | . 53 . 6 Core Hits 31 | . 27 . 4 Critical Kills . | . . . . Critical Parts Destroyed . | . . . . Critical Strikes 7 | . 7 . . Burn 7 | . 7 . . Melee Attacks . | . . . . Impact . | . . . . Slashing . | . . . . Piercing . | . . . . Sneak Attacks . | . . . . Combat Hostiles . | . . . . Follow-up Attacks . | . . . . Damage Inflicted 647 | 4 556 17 70 Guns 556 | . 556 . . Cannons 70 | . . . 70 Explosions 17 | . . 17 . Melee . | . . . . Ramming 4 | 4 . . . Kinetic 302 | . 232 . 70 Thermal 324 | . 324 . . Explosive 17 | . . 17 . Electromagnetic . | . . . . Impact . | . . . . Slashing . | . . . . Piercing . | . . . . Highest Corruption . | . . . . Average Corruption . | . . . . Corruption Purged . | . . . . Corruption Blocked . | . . . . Overload Shots . | . . . . Overflow Damage . | . . . . Projectiles . | . . . . Explosions . | . . . . Melee . | . . . . Knockbacks 2 | . . . 2 Impact . | . . . . Kinetic 1 | . . . 1 Secondary 1 | . . . 1 Self-Inflicted Damage 24 | . . 24 . Shots 1 | . . 1 . Rammed . | . . . . Targets Rammed 1 | 1 . . . Kicked 1 | 1 . . . Crushed . | . . . . Highest Temperature 148 | . 148 . 30 Average Temperature 50 | . 53 . 13 Received Heat Transfer 174 | . 174 . . Siege Activations . | . . . . Martial Activations . | . . . . Shielding Activations . | . . . . Robots Disrupted . | . . . . Combat Hostiles . | . . . . Robots Corrupted . | . . . . Combat Hostiles . | . . . . Parts Fried . | . . . . Impact Corruptions . | . . . . Robots Melted . | . . . . Combat Hostiles . | . . . . Parts Melted 5 | . 5 . . Heat Transferred 1480 | . 1480 . . Parts Sabotaged . | . . . . Parts Stolen . | . . . . Parts Stripped . | . . . . Power Chain Reactions . | . . . . Alert | -11 -10 -10 -8 ------- Run | Yrd Mat Sub Scr Maximum Alert Level . | . . . . Low Security (%) 100 | 100 100 . . Level 1 . | . . . . Level 2 . | . . . . Level 3 . | . . . . Level 4 . | . . . . Level 5 . | . . . . High Security . | . . . . Max Security . | . . . . Peak Influence 67 | . 67 . . Initial . | . . . . Average 15 | . 16 . . Influence Increases 297 | . 297 . . Destroy 0b10 Robot/C 240 | . 240 . . Destroy 0b10 Robot/NC 5 | . 5 . . Destroy Leader 52 | . 52 . . Influence Decreases 297 | . 297 . . Time Decay 257 | . 257 . . Lost Part 40 | . 40 . . Squads Dispatched 2 | . 2 . . Investigation . | . . . . Extermination . | . . . . Reinforcement 2 | . 2 . . Assault . | . . . . Garrison . | . . . . Intercept . | . . . . Searches Triggered . | . . . . Construction Impeded . | . . . . Haulers Reinforced . | . . . . Active Scanning Responses . | . . . . Cargo Convoy Interrupts . | . . . . Stealth | -11 -10 -10 -8 --------- Run | Yrd Mat Sub Scr Distress Signals 1 | . 1 . . Communications Jammed . | . . . . Distress Signals . | . . . . Times Spotted 25 | . 19 . 6 Peak Tracking Total 4 | . 4 . 3 Tactical Retreats . | . . . . Traps | -11 -10 -10 -8 ------- Run | Yrd Mat Sub Scr Traps Triggered 1 | . 1 . . Indirectly . | . . . . Trap Hack Attempts . | . . . . Triggered . | . . . . Disarmed . | . . . . Reprogrammed . | . . . . Reused . | . . . . Traps Extracted . | . . . . Installed . | . . . . Triggered . | . . . . Machines | -11 -10 -10 -8 ---------- Run | Yrd Mat Sub Scr Machines Disabled 1 | . . . 1 Max in Single Turn 1 | . . . 1 Machines Repaired . | . . . . Machines Dismantled . | . . . . Machines Sabotaged . | . . . . Overloaded Fab Kills . | . . . . Hacking | -11 -10 -10 -8 --------- Run | Yrd Mat Sub Scr Machines Accessed 6 | . 1 . 5 Terminals . | . . . . Fabricators . | . . . . Repair Stations 1 | . 1 . . Recycling Units . | . . . . Scanalyzers . | . . . . Garrison Access . | . . . . Total Hacks 39 | . 2 . 37 Successful 39 | . 2 . 37 Failed . | . . . . Catastrophic . | . . . . Database Lockouts . | . . . . Manual . | . . . . Terminals . | . . . . Fabricators . | . . . . Repair Stations 2 | . 2 . . Recycling Units . | . . . . Scanalyzers . | . . . . Garrison Access . | . . . . Terminal Hacks 37 | . . . 37 Record 37 | . . . 37 Fabricator Hacks . | . . . . Repair Station Hacks 2 | . 2 . . Scan Component 1 | . 1 . . Repair 1 | . 1 . . Recycling Unit Hacks . | . . . . Scanalyzer . | . . . . Garrison Access Hacks . | . . . . Unauthorized Hacks . | . . . . Terminals . | . . . . Fabricators . | . . . . Repair Stations . | . . . . Recycling Units . | . . . . Scanalyzers . | . . . . Garrison Access . | . . . . Data Cores Recovered . | . . . . Used . | . . . . Hacking Detections 1 | . 1 . . Full Trace Events . | . . . . Feedback Events . | . . . . Feedback Blocked . | . . . . Robot Schematics Acquired . | . . . . Robots Built . | . . . . Authchips . | . . . . Time . | . . . . Total Robot Build Rating . | . . . . Part Schematics Acquired . | . . . . Parts Built . | . . . . Authchips . | . . . . Time . | . . . . Total Part Build Rating . | . . . . Parts Repaired 1 | . 1 . . Time 26 | . 26 . . Parts Recycled . | . . . . Recycled Matter . | . . . . Retrieved Matter . | . . . . Retrieved Components . | . . . . Parts Scanalyzed . | . . . . Part Schematics Acquired . | . . . . Parts Damaged . | . . . . Bothacking | -11 -10 -10 -8 ------------ Run | Yrd Mat Sub Scr Used RIF Installer . | . . . . Robots Hacked . | . . . . Non-combat . | . . . . Combat . | . . . . Robot Hacks Applied . | . . . . Relay Couplers Released . | . . . . Fabnet Peak Effective % . | . . . . Robots Rewired . | . . . . Allies Hacked . | . . . . Hacks Repelled . | . . . . Allies | -11 -10 -10 -8 -------- Run | Yrd Mat Sub Scr Total Allies . | . . . . Largest Group . | . . . . Highest-Rated Group . | . . . . Highest-Rated Ally . | . . . . Total Orders . | . . . . Ally Attacks . | . . . . Total Damage . | . . . . Kills . | . . . . Allies Corrupted . | . . . . Allies Melted 1 | . . . 1 Intel | -11 -10 -10 -8 ------- Run | Yrd Mat Sub Scr Active Infowar (turns) 2896 | . 656 294 1946 Optics 2896 | . 656 294 1946 Robot Analysis Total . | . . . . Derelict Logs Recovered . | . . . . Drone Launches . | . . . . Drone Recoveries . | . . . . Exploration | -11 -10 -10 -8 ------------- Run | Yrd Mat Sub Scr Turns Passed 3246 | 52 954 294 1946 Spaces Moved 2254 | 38 566 92 1558 Core 14 | 14 . . . Treads . | . . . . Legs 2240 | 24 566 92 1558 Wheels . | . . . . Hover . | . . . . Flight . | . . . . Fastest Speed 50 | 50 120 120 110 Average Speed 119 | 98 120 120 119 Slowest Speed 190 | 120 120 120 190 Overloaded Moves . | . . . . Propulsion Burnouts . | . . . . Robots Hopped . | . . . . Potential Cave-ins . | . . . . Cave-ins Triggered . | . . . . Exploration Rate (%) 36 | 3 51 4 87 Regions Visited 3 Branch Regions 2 Pre-discovered Areas . | . . . . Known Exits Taken . | . . . . Unknown Exits Taken 3 | 1 1 1 . Scrap Searched 10 | . . . 10 Spaces Dug 5 | . . 5 . Terrain Destroyed 10 | . . 10 . Melee . | . . . . Projectile . | . . . . AOE 10 | . . 10 . Terrain Rammed . | . . . . Walls Destroyed . | . . . . Machines Disabled . | . . . . Actions | -11 -10 -10 -8 --------- Run | Yrd Mat Sub Scr Total 2716 | 52 753 272 1639 Wait 310 | 1 110 178 21 Move 2251 | 37 565 91 1558 Hop . | . . . . Pick Up 43 | 7 14 1 21 Fast Attach . | . . . . Attach 17 | 6 7 . 4 Detach . | . . . . Swap 8 | . . . 8 Drop 25 | . 2 . 23 Fire 61 | . 55 2 4 Melee . | . . . . Ram . | . . . . Kick 1 | 1 . . . Crush . | . . . . Escape Stasis . | . . . . Rewire . | . . . . Trap . | . . . . Miscellaneous . | . . . . Route ------- -11/Scrapyard -10/Materials -10/Subcaves -8/Scraptown (discovered 2 exits: [*Fac x2]) History --------- Turn | Location | Event 5 | -11/Scrapyard | Discovered new exit (range 16) 53 | -11/Scrapyard | Entered Materials 54 | -10/Materials | Met a group of wandering Federalists 58 | -10/Materials | Discovered new exit (range 9) 301 | -10/Materials | Build established: Mutant 571 | -10/Materials | Core integrity fell below 50% 961 | -10/Materials | Repaired Lgt. Assault Rifle 1001 | -10/Materials | Build established: Scavenger-Mutant 1007 | -10/Materials | Entered Subcaves 1008 | -10/Subcaves | Continued accompanying wandering Federalists (5) 1008 | -10/Subcaves | Approached by a straggling Scientist 1026 | -10/Subcaves | Shifting Twisted Machinery released Sub. Monowheel 1044 | -10/Subcaves | A swath of the cavern ceiling suddenly collapsed 1085 | -10/Subcaves | Shifting Twisted Machinery released Flamer 1268 | -10/Subcaves | Wandering Federalist uncovered a shortcut to Scraptown 1301 | -10/Subcaves | Entered Scraptown 1792 | -8/Scraptown | Discovered new exit (range 7) 1843 | -8/Scraptown | Build established: Mutant 1863 | -8/Scraptown | Visited Bundlers 1979 | -8/Scraptown | Visited CPS Storage 2246 | -8/Scraptown | Visited Junk Repository 2283 | -8/Scraptown | Visited The Evicted 2336 | -8/Scraptown | Visited UFD Registry 2341 | -8/Scraptown | Registered with UFD as "Protonsys" 2392 | -8/Scraptown | Visited Spacefarers 2443 | -8/Scraptown | Visited Comm Corps 2521 | -8/Scraptown | Visited CR-KLE's Repair Center 2530 | -8/Scraptown | CR-KLE repaired 6 parts 2778 | -8/Scraptown | Visited DA-N13 Charitable Foundation 2790 | -8/Scraptown | Found DCF Scrap (29 items) 2859 | -8/Scraptown | Visited A0-MCA Data Center 2866 | -8/Scraptown | Given a B- rating by A0-MCA 2874 | -8/Scraptown | Found A0-MCA's Component Scanner 2976 | -8/Scraptown | Discovered new exit (range 5) 3009 | -8/Scraptown | Visited Curators Association 3035 | -8/Scraptown | Visited Scrapoid Research Area 3100 | -8/Scraptown | Build established: Derelict-Mutant 3112 | -8/Scraptown | Met Optimus 3112 | -8/Scraptown | Accepted into 0bPrime 3174 | -8/Scraptown | Visited Scrap Suit Storage 3199 | -8/Scraptown | Found Scrap Suit 3222 | -8/Scraptown | Civil war broke out across Scraptown 3242 | -8/Scraptown | Core integrity fell below 20% 3247 | -8/Scraptown | Destroyed by 1S-VG0(h) with KE Penetrator Last Messages --------------- Machine disabled. Bolt penetrates Machine. Penetrated by Slug. Machine disabled. Slug penetrates WQ-4PW(h). Slug penetrates Machine. Bolt penetrates Optimus. Slug penetrates WQ-4PW(h). Slug penetrates Wall. Slug penetrates WQ-4PW(h). Slug penetrates Wall. Penetrated by Slug. Bolt penetrates Optimus. 7P-KU4(x): "Quick, someone dig a tunnel out of here!" Penetrated by Slug. Machine disabled. 1S-VG0(h) knocked back. Slug penetrates Machine. Bolt penetrates Optimus. Penetrated by Slug. Map ----- +----------------------------------------------------+ | "## "#????????? | | #????????? | | """"""""""""""""""""" "## """ #????????? | | """"""""""""""""""""" "## " """"" #????????? | | # ################"" "## """ """ ?????????? | | ##????????#"" = "#############?????????? | | X"#????????#"" !%["## #"""""#""#?????????? | | " "" ##????????#"" !*="## !!!! !#?????????? | | "" X"#??????###"" ## #?????????? | | " ######### #"" ## #?????????? | | "" X" #?????????? | | "" t % ## ] ##"#?????????? | | " ######### #""% c ## ]=!! #????????????? | | "" ""#??????###"" ## #"""""#????????????? | | " "" ##????????#"" ##########????????????? | | X"#????????#"" #?????????????????????? | | ##????????#"" #??######?????????????? | | # ######??########"" "#?" """"""????????????? | | """"??????""""""""""" !* ##" " "" "????????????? | | """""?"""""""""" " "" !%! " " "" "????????????? | | !=%![ 3="##" "#???????????? | | =!*% "#?" """"#???????????? | | "#?? "#???????????? | | x ##? " "" "#???????????? | | % #" " "" "#???????????? | | """"" """""""" hh @ ;; """"""#???????????? | | ##### #?????##;;;%=;;;## #########?????????????? | | ????????????# ### #?????????????????????? | | ???????????#" ??# #?????????????????????? | | ???????????## ??# #?????????????????????? | | ????????????# ""??# E #?????????????????????? | | ????????????#" ???# #?????????????????????? | | ????????????#" "???# #?????????????????????? | | ????????????# ???# ?????????????????????? | | ????????????#"" "???# ?????????????????????? | | ????????????#" ????# ????????????????????? | | ?????????????" &&&"????# ????????????????????? | | ????????????#"""""?????#! ???????????????????? | | ????????????###????????#%/ ###???????????????????? | | ???????????????????????#*= #?????????????????????? | | ???????????????????????? "?????????????????????? | | ???????????????????????? "?????????????????????? | | ???????????????????????? ??????????????????????? | | ???????????????????????? ??????????????????????? | | ?????????????????????????????????????????????????? | | ?????????????????????????????????????????????????? | | ?????????????????????????????????????????????????? | | ?????????????????????????????????????????????????? | | ?????????????????????????????????????????????????? | | ?????????????????????????????????????????????????? | +----------------------------------------------------+ Best States ------------- Heat Dissipation 25 Energy Generation 14 Energy Capacity 250 Matter Stores 300 Matter Capacity 300 Sight Range 18 Terrain Scan Density 10 Evasion (%) 55 Item Schematics ----------------- None Robot Schematics ------------------ None Fabricated ------------ Nothing Repaired ---------- Lgt. Assault Rifle | 10% | -10/Materials Alien Tech Used ----------------- None Achievements -------------- None Challenges ------------ None Game ------ Seed DroneBackupShield Manual? 0 Play Time 00:57:55 Cumulative 7.8 hours Start 2025.06.29 @ 15:01:22 End 2025.06.29 @ 16:52:16 Sessions 1 Manual Loads 0 Difficulty Rogue Special Mode None Game No. 6 Rogue 6 Adventurer 0 Explorer 0 Win Type - Total 0 Types 0/0/0/0/0/0/0/0/0/0 Lore% 9 Gallery% 13 Achievement% 17 Wizard Run 0 Options --------- Layout 2 ASCII 0 Keyboard 0 Movement Numpad Keybinds 0 Fullscreen 0 Font 20/X11 Map View 64x51 Zoom Use 0% Tactical HUD 0 Map Filters NONE Filters NONE Steam 0 RUN: e81d502d-8f59-4aa3-8ba7-82b77334541d